bitfinex/quotes_SOLUSD_20250421
["timestamp","ask_amount","ask_price","bid_price","bid_amount"]
[1745256783068,39.53189331,135.12,135.11,1e-08]
[1745256784967,38.79181043,135.08,135.07,1e-08]
[1745256785849,20.0,135.08,135.07,1e-08]
[1745256786045,46.0,135.08,135.07,1e-08]
[1745256786355,20.0,135.1,135.07,1e-08]
[1745256786867,20.74019968,135.1,135.07,1e-08]
[1745256788166,22.5906808,135.1,135.07,1e-08]
[1745256788476,20.74019968,135.1,135.07,1e-08]
[1745256792285,46.0,135.08,135.07,1e-08]
[1745256793178,64.79181043,135.08,135.07,1e-08]
[1745256793383,65.53211247,135.08,135.07,1e-08]
[1745256793881,46.74030204,135.08,135.07,1e-08]
[1745256794058,20.74030204,135.08,135.07,1e-08]
[1745256795590,39.53211247,135.08,135.07,1e-08]
[1745256798883,58.17211247,135.08,135.07,1e-08]
[1745256801379,64.79181043,135.06,135.05,1e-08]
[1745256802190,65.53222209,135.06,135.05,1e-08]
[1745256805601,20.0,135.02,135.01,1e-08]
[1745256805770,46.0,135.02,135.01,1e-08]
[1745256805974,64.79181043,135.02,135.01,1e-08]
[1745256807070,39.53244144,135.02,134.97,0.063]
[1745256807282,64.79181043,134.99,134.98,1e-08]
[1745256808204,68.51534625,134.99,134.98,1e-08]
[1745256808491,38.79181043,134.97,134.96,1e-08]
[1745256808697,44.79181043,134.96,134.95,1e-08]
[1745256809067,45.53277071,134.96,134.95,1e-08]
[1745256810395,26.74096028,134.96,134.95,1e-08]
[1745256810596,45.53277071,134.96,134.95,1e-08]
[1745256816590,26.74096028,134.96,134.95,1e-08]
[1745256818018,20.0,134.97,134.95,1e-08]
[1745256818189,20.0,134.99,134.95,7.65180001]
[1745256818389,0.74089437,134.98,134.95,7.65180001]
[1745256818697,20.0,134.96,134.95,1e-08]
[1745256819912,20.74096028,134.96,134.95,1e-08]
[1745256820096,0.74096028,134.96,134.95,1e-08]
[1745256820482,20.74096028,134.96,134.95,1e-08]
[1745256820997,0.74096028,134.96,134.95,1e-08]
[1745256821200,0.74094092,134.97,134.95,1e-08]
[1745256822287,20.0,134.96,134.95,1e-08]
[1745256824721,20.74096028,134.96,134.95,1e-08]
[1745256825818,20.74087534,134.98,134.95,1e-08]
[1745256828718,20.0,134.96,134.95,1e-08]
[1745256829126,39.53277071,134.96,134.95,1e-08]
[1745256830510,46.74096028,134.96,134.95,1e-08]
[1745256831742,65.53277071,134.96,134.95,1e-08]
[1745256833124,46.74096028,134.96,134.95,1e-08]
[1745256833493,65.53277071,134.96,134.95,1e-08]
[1745256834810,46.74096028,134.96,134.95,1e-08]
[1745256843337,65.53277071,134.96,134.95,1e-08]
[1745256844427,46.74096028,134.96,134.95,1e-08]
[1745256845344,20.74096028,134.96,134.95,1e-08]
[1745256855349,39.53277071,134.96,134.95,1e-08]
[1745256861256,121.33277071,134.96,134.95,1e-08]
[1745256861458,102.54096028,134.96,134.95,1e-08]
[1745256861952,0.74093366,134.97,134.95,1e-08]
[1745256862159,0.74093366,134.97,134.95,1.50940001]
[1745256862160,20.74093366,134.97,134.95,1.50940001]
[1745256862360,20.74093366,134.97,134.95,1e-08]
[1745256863440,18.79181043,134.96,134.95,1e-08]
[1745256864756,19.53277071,134.96,134.95,1e-08]
[1745256867063,101.33277071,134.96,134.95,1e-08]
[1745256871255,64.79181043,134.94,134.93,1e-08]
[1745256872164,64.79181043,134.94,134.84,7.41597374]
[1745256872165,38.64964886,134.88,134.87,1e-08]
[1745256872354,38.79181043,134.88,134.87,1e-08]
[1745256873058,20.0,134.88,134.87,1e-08]
[1745256873257,20.74139976,134.88,134.87,1e-08]
[1745256873563,0.74137125,134.89,134.87,1e-08]
[1745256873754,20.0,134.88,134.87,1e-08]
[1745256873960,0.74137125,134.89,134.87,1e-08]
[1745256876849,20.0,134.9,134.87,6.32420001]
[1745256877084,0.74114419,134.93,134.88,1.5254]
[1745256877452,118.96964886,134.97,134.9,26.0]
[1745256877453,0.74101881,134.95,134.9,26.0]
[1745256877663,0.74101881,134.95,134.9,33.41281832]
[1745256878871,0.74101881,134.95,134.9,26.0]
[1745256879062,20.0,134.94,134.9,26.0]
[1745256879652,0.74101881,134.95,134.9,33.41264449]
[1745256879849,20.0,134.96,134.9,33.41264449]
[1745256880071,20.74080855,134.99,134.91,18.79181043]
[1745256880357,20.74080855,134.99,134.92,7.8496]
[1745256881174,20.0,134.97,134.92,7.8496]
[1745256881556,20.0,134.97,134.92,15.2613008]
[1745256881756,20.0,134.97,134.92,7.8496]
[1745256881964,20.0,134.97,134.92,15.26133269]
[1745256882486,20.0,134.97,134.92,7.8496]
[1745256883453,20.74092642,134.97,134.92,7.8496]
[1745256883882,20.74092642,134.97,134.92,15.26130143]
[1745256884178,20.74092642,134.97,134.92,7.8496]
[1745256884585,20.74092642,134.97,134.92,15.26130675]
[1745256884769,0.74092642,134.97,134.92,15.26130675]
[1745256885686,20.0,134.99,134.92,15.26130675]
[1745256885885,0.063,135.02,135.01,1.5254]
[1745256886574,0.063,135.02,135.01,20.31721043]
[1745256887296,0.063,135.04,135.03,44.79181043]
[1745256887777,0.063,135.04,135.03,52.19757211]
[1745256891388,0.063,135.04,135.03,33.40576168]
[1745256891570,0.063,135.04,135.03,26.0]
[1745256892779,0.063,135.04,135.01,90.73202725]
[1745256892780,0.063,135.04,135.01,83.32539999]
[1745256893368,0.063,135.04,135.01,1.5254]
[1745256893664,20.0,135.03,134.97,1.5693]
[1745256893859,20.0,135.03,134.98,7.0]
[1745256894388,20.0,135.03,134.97,1.5693]
[1745256894880,0.063,135.04,134.98,26.0]
[1745256895291,0.063,135.04,135.0,26.0]
[1745256895590,0.063,135.04,135.0,33.40733839]
[1745256895776,0.063,135.04,135.03,26.0]
[1745256895983,0.063,135.04,135.03,27.5693]
[1745256897692,0.063,135.04,135.03,34.97506168]
[1745256898212,0.063,135.04,135.03,27.5693]
[1745256898368,0.063,135.04,135.03,34.97506168]
[1745256898764,0.063,135.04,135.03,27.5693]
[1745256899603,0.063,135.04,135.03,26.0]
[1745256899900,0.063,135.04,135.03,33.40576168]
[1745256900305,0.063,135.04,135.03,26.0]
[1745256900902,0.063,135.04,135.03,33.40576168]
[1745256902005,0.063,135.04,135.03,26.0]
[1745256902806,0.063,135.04,135.03,33.40576168]
[1745256903006,0.063,135.04,135.03,26.0]
[1745256903221,0.063,135.04,135.01,6.5168]
[1745256903425,0.063,135.04,134.99,1.5693]
[1745256903587,20.0,135.03,134.95,1.5243]
[1745256903919,20.0,135.03,134.96,7.03]
[1745256904092,0.74063101,135.02,134.96,7.03]
[1745256904293,20.0,135.01,134.96,7.03]
[1745256904913,20.0,134.98,134.96,7.03]
[1745256906024,0.74090538,134.97,134.96,7.03]
[1745256906192,0.74090538,134.97,134.96,0.03]
[1745256907019,20.74087438,134.98,134.96,0.03]
[1745256907593,18.79181043,134.97,134.96,0.03]
[1745256908103,0.74090538,134.97,134.96,0.03]
[1745256909515,19.53271581,134.97,134.96,0.03]
[1745256910016,0.74090538,134.97,134.96,0.03]
[1745256911599,19.53271581,134.97,134.96,0.03]
[1745256912316,0.74090538,134.97,134.96,0.03]
[1745256912710,19.53271581,134.97,134.96,0.03]
[1745256914223,20.74128984,134.9,134.89,0.118137]
[1745256917811,65.53310027,134.9,134.89,1e-08]
[1745256922437,67.15060027,134.9,134.89,1e-08]
[1745256926338,44.79181043,134.89,134.88,1e-08]
[1745256926529,63.29181043,134.89,134.88,1e-08]
[1745256928343,64.03315522,134.89,134.88,1e-08]
[1745256930538,20.0,134.84,134.83,0.03]
[1745256932739,20.74161969,134.84,134.83,0.03]
[1745256932927,58.01343012,134.84,134.83,0.03]
[1745256933422,84.01343012,134.84,134.83,1e-08]
[1745256933616,20.0,134.82,134.81,0.03]
[1745256933936,46.0,134.82,134.81,0.03]
[1745256934520,20.0,134.78,134.75,0.03]
[1745256935123,20.74185972,134.8,134.75,0.03]
[1745256935843,20.0,134.8,134.75,0.03]
[1745256936049,0.74159822,134.85,134.8,6.2228]
[1745256936262,20.0,134.86,134.8,6.2228]
[1745256936918,20.0,134.86,134.81,7.41784734]
[1745256937744,0.74145607,134.87,134.81,7.41784734]
[1745256937745,20.0,134.89,134.81,51.96246569]
[1745256937925,102.30275958,134.91,134.84,18.64964886]
[1745256937926,20.0,134.91,134.84,18.64964886]
[1745256938132,20.0,134.91,134.85,6.67486157]
[1745256938924,20.74116922,134.93,134.86,26.06474599]
[1745256939128,20.0,134.93,134.87,0.14216157]
[1745256939350,20.74112939,134.93,134.87,0.14216157]
[1745256939617,20.0,134.93,134.87,0.14216157]
[1745256939821,20.0,134.93,134.89,26.0]
[1745256940047,20.7410496,134.95,134.89,26.0]
[1745256940674,20.0,134.93,134.88,1.5232]
[1745256941148,0.74117995,134.92,134.88,1.5232]
[1745256941456,20.0,134.91,134.88,1.5232]
[1745256941654,20.0,134.91,134.85,6.5327]
[1745256941655,20.0,134.88,134.85,6.5327]
[1745256941861,20.0,134.86,134.81,89.85589999]
[1745256942156,20.0,134.84,134.81,8.0559]
[1745256942562,20.0,134.84,134.81,1.5232]
[1745256943156,20.0,134.82,134.78,6.5327]
[1745256943344,20.0,134.82,134.79,8.69]
[1745256943755,20.0,134.82,134.78,6.5327]
[1745256944941,20.0,134.82,134.78,13.95204901]
[1745256946939,20.74173045,134.82,134.78,6.5327]
[1745256947147,20.74173045,134.82,134.77,34.94303288]
[1745256947359,20.0,134.82,134.77,34.94303288]
[1745256947540,102.30343568,134.86,134.78,18.79181043]
[1745256947541,20.0,134.86,134.78,18.79181043]
[1745256948564,20.74152806,134.86,134.79,7.41894799]
[1745256949360,22.59530234,134.86,134.78,7.41927994]
[1745256949556,20.0,134.84,134.78,7.41927994]
[1745256949864,20.74152806,134.86,134.79,18.79181043]
[1745256950760,20.0,134.9,134.84,1.5232]
[1745256950951,0.74123489,134.91,134.85,18.79181043]
[1745256952068,20.0,134.9,134.84,8.93932225]
[1745256952238,20.0,134.9,134.84,1.5232]
[1745256952442,20.0,134.88,134.84,1.5232]
[1745256953056,20.0,134.88,134.83,6.5327]
[1745256954046,0.74145473,134.87,134.83,6.5327]
[1745256954245,0.74145473,134.87,134.81,27.6288]
[1745256954440,0.74145473,134.87,134.81,1.6288]
[1745256954673,20.0,134.86,134.79,6.4473]
[1745256954852,20.0,134.86,134.79,32.4473]
[1745256955363,20.0,134.86,134.79,13.86612909]
[1745256955658,20.0,134.86,134.79,39.86612909]
[1745256956761,0.7415647,134.85,134.79,32.4473]
[1745256956949,20.0,134.84,134.79,32.4473]
[1745256958048,20.0,134.84,134.77,27.6288]
[1745256958950,0.7416747,134.83,134.77,27.6288]
[1745256959355,20.0,134.82,134.77,1.6288]
[1745256959665,20.0,134.82,134.76,6.4473]
[1745256959961,20.0,134.8,134.75,81.82999999]
[1745256960173,20.0,134.8,134.75,0.03]
[1745256961046,0.74189479,134.79,134.75,0.03]
[1745256961852,20.0,134.78,134.75,0.03]
[1745256962650,20.0,134.76,134.75,0.03]
[1745256962970,20.74205995,134.76,134.75,0.03]
[1745256963154,20.0,134.74,134.72,0.03]
[1745256963342,52.3827,134.74,134.72,0.03]
[1745256963674,18.79181043,134.73,134.72,0.03]
[1745256963984,20.0,134.69,134.67,0.03]
[1745256965047,0.74250074,134.68,134.67,0.03]
[1745256966285,20.7424607,134.69,134.67,0.03]
[1745256967581,20.0,134.69,134.67,0.03]
[1745256968379,20.0,134.74,134.67,18.67964886]
[1745256968580,20.74219034,134.74,134.67,18.67964886]
[1745256968881,20.74207851,134.76,134.68,0.14216157]
[1745256969086,20.74199082,134.78,134.72,7.42280285]
[1745256969392,20.0,134.8,134.74,0.14216157]
[1745256969563,0.063,134.81,134.74,0.14216157]
[1745256970384,0.80478691,134.81,134.74,0.14216157]
[1745256971097,0.80478626,134.81,134.75,7.42115027]
[1745256971591,0.063,134.81,134.75,7.42115027]
[1745256971794,0.063,134.81,134.75,18.64964886]
[1745256972784,0.063,134.81,134.75,26.07035319]
[1745256974171,0.063,134.81,134.76,0.14216157]
[1745256974365,0.063,134.81,134.78,0.14216157]
[1745256974800,0.063,134.81,134.8,44.79181043]
[1745256976195,0.063,134.81,134.8,52.21020805]
[1745256976806,0.74137972,134.89,134.82,0.14216157]
[1745256977185,0.063,134.87,134.82,0.14216157]
[1745256977969,0.063,134.87,134.79,18.46]
[1745256978179,20.0,134.85,134.77,1.6294]
[1745256978482,20.0,134.83,134.76,33.42059958]
[1745256978684,20.0,134.83,134.77,4.78]
[1745256979474,20.0,134.83,134.76,33.42059958]
[1745256979871,0.74172971,134.82,134.76,33.42059958]
[1745256980480,0.74172971,134.82,134.76,26.0]
[1745256980685,0.74172971,134.82,134.76,18.64964886]
[1745256982179,0.74172971,134.82,134.76,26.07009512]
[1745256983407,20.0,134.85,134.77,0.14216157]
[1745256983719,0.063,134.87,134.8,18.64964886]
[1745256984018,0.063,134.87,134.81,0.14216157]
[1745256984213,0.063,134.87,134.83,18.64964886]
[1745256985216,0.063,134.87,134.81,9.15276559]
[1745256985384,0.063,134.87,134.82,18.64964886]
[1745256986193,0.063,134.87,134.82,26.06655136]
[1745256987179,0.063,134.87,134.83,7.55846535]
[1745256990109,0.063,134.87,134.83,26.10033288]
[1745256990419,0.063,134.87,134.85,0.14216157]
[1745256990712,0.063,134.87,134.86,44.64964886]
[1745256991487,0.063,134.87,134.86,52.06474599]
[1745256992004,0.063,134.87,134.86,52.20690756]
[1745256994889,1e-08,134.87,134.86,134.00690755]
[1745256995592,0.063,134.92,134.91,18.64964886]
[1745256995901,0.063,134.92,134.91,108.00415939]
[1745256996606,1e-08,134.92,134.91,114.18935939]
[1745256996811,1e-08,134.93,134.92,0.14216157]
[1745256996987,0.063,134.95,134.94,44.79181043]
[1745256997193,0.063,134.95,134.94,126.59181042]
[1745256997931,0.063,134.95,134.94,134.00251147]
[1745257002624,0.063,134.95,134.94,152.42251147]
[1745257006605,0.063,134.95,134.94,152.2803499]
[1745257006806,0.063,134.95,134.94,152.42251147]
[1745257009035,0.063,134.95,134.94,145.01181042]
[1745257009204,0.063,134.95,134.94,134.00251147]
[1745257009610,0.063,134.95,134.94,133.8603499]
[1745257010026,0.063,134.95,134.94,134.00251147]
[1745257012608,1e-08,134.95,134.94,178.36251147]
[1745257013503,1e-08,134.96,134.95,63.15181043]
[1745257013832,1e-08,134.97,134.96,144.95181042]
[1745257014220,1e-08,134.97,134.96,145.95181042]
[1745257014799,1e-08,134.97,134.96,144.95181042]
[1745257015304,1e-08,134.97,134.96,145.95181042]
[1745257015608,1e-08,134.97,134.96,152.36141326]
[1745257015817,1e-08,134.97,134.96,107.85925169]
[1745257016135,1e-08,134.97,134.96,52.0592517]
[1745257016336,1e-08,134.97,134.96,44.64964886]
[1745257016832,1e-08,134.97,134.96,18.64964886]
[1745257017039,1e-08,134.97,134.94,0.14216157]
[1745257017040,1e-08,134.97,134.93,18.64964886]
[1745257017250,1e-08,134.97,134.93,44.64964886]
[1745257017912,1e-08,134.97,134.9,7.41289844]
[1745257018109,1e-08,134.97,134.93,26.0]
[1745257018506,1e-08,134.97,134.94,18.79181043]
[1745257019238,1e-08,134.97,134.94,0.14216157]
[1745257020618,1e-08,134.97,134.93,44.64964886]
[1745257020938,1e-08,134.97,134.93,52.06089101]
[1745257021122,1e-08,134.97,134.94,44.50216157]
[1745257021327,1e-08,134.97,134.96,44.79181043]
[1745257022732,1e-08,134.97,134.96,52.20141327]
[1745257036342,1e-08,134.97,134.94,81.94216156]
[1745257036544,1e-08,134.97,134.91,81.79999999]
[1745257036747,8.30060001,134.97,134.91,81.79999999]
[1745257037459,8.30060001,134.97,134.92,18.64964886]
[1745257038738,20.0,134.95,134.9,37.44141843]
[1745257038949,20.0,134.93,134.9,37.44141843]
[1745257039773,0.74117995,134.92,134.9,0.03]
[1745257039943,20.0,134.95,134.9,0.03]
[1745257040266,0.7410701,134.94,134.9,0.03]
[1745257040853,2.59374536,134.94,134.9,0.03]
[1745257041046,20.0,134.91,134.9,0.03]
[1745257041456,20.0,134.93,134.9,0.03]
[1745257041832,0.74117995,134.92,134.9,0.03]
[1745257043261,120.2,134.95,134.9,0.03]
[1745257043757,54.30060001,134.97,134.91,18.64964886]
[1745257043950,0.74098088,134.96,134.91,18.64964886]
[1745257044961,0.74098088,134.96,134.9,0.03]
[1745257045163,20.0,134.95,134.9,18.67964886]
[1745257045541,20.0,134.93,134.9,0.03]
[1745257045946,84.39338159,134.96,134.9,0.03]
[1745257045947,20.0,134.91,134.9,0.03]
[1745257047067,20.74123489,134.91,134.9,0.03]
[1745257050965,0.74120899,134.92,134.9,0.03]
[1745257051354,20.7411398,134.93,134.9,0.03]
[1745257053079,20.0,134.93,134.9,0.03]
[1745257053491,0.74109675,134.94,134.9,0.03]
[1745257054082,0.74103203,134.95,134.9,0.03]
[1745257054265,10.15289638,134.97,134.9,0.03]
[1745257054266,0.74092425,134.97,134.9,0.03]
[1745257054594,0.74092425,134.97,134.93,18.64964886]
[1745257054595,1e-08,134.97,134.93,18.64964886]
[1745257054764,1e-08,134.97,134.95,18.64964886]
[1745257056882,1e-08,134.97,134.96,26.0592517]
[1745257057586,1e-08,134.97,134.96,18.64964886]
[1745257059501,1e-08,134.97,134.96,26.0592517]
[1745257059988,1e-08,134.97,134.96,18.64964886]
[1745257060392,1e-08,134.97,134.93,18.64964886]
[1745257060685,20.00000001,134.97,134.9,0.03]
[1745257061202,20.74093789,134.97,134.91,18.64964886]
[1745257061675,0.74093789,134.97,134.91,18.64964886]
[1745257061880,1e-08,134.97,134.92,0.14216157]
[1745257062077,1e-08,134.97,134.93,18.64964886]
[1745257062486,1e-08,134.97,134.94,0.14216157]
[1745257062965,1e-08,134.97,134.96,18.64964886]
[1745257064697,1e-08,134.97,134.96,7.40960284]
[1745257066707,1e-08,134.97,134.96,51.76960284]
[1745257066875,1e-08,134.97,134.96,7.40960284]
[1745257070599,1e-08,134.97,134.96,26.20141327]
[1745257072976,1e-08,134.97,134.96,18.64964886]
[1745257073302,0.063,135.0,134.98,0.14216157]
[1745257073707,0.063,135.0,134.97,18.64964886]
[1745257074070,0.063,135.0,134.98,0.14216157]
[1745257075000,0.063,135.0,134.99,7.40795614]
[1745257077206,0.063,135.0,134.99,51.88795614]
[1745257077413,0.063,135.0,134.99,7.40795614]
[1745257077911,0.063,135.0,134.99,33.40795614]
[1745257079522,0.063,135.0,134.99,52.19976657]
[1745257080593,0.063,135.0,134.95,18.64964886]
[1745257080792,0.063,135.0,134.95,26.05980076]
[1745257081282,0.063,135.0,134.96,0.14216157]
[1745257082200,0.063,135.0,134.96,7.55168046]
[1745257082409,0.063,135.0,134.96,18.64964886]
[1745257082993,0.063,135.0,134.97,0.14216157]
[1745257084001,0.063,135.0,134.96,18.64964886]
[1745257085915,0.063,135.0,134.96,26.05911141]
[1745257086101,0.063,135.0,134.97,0.14216157]
[1745257087111,0.063,135.0,134.99,18.64964886]
[1745257087309,0.063,135.0,134.98,18.64964886]
[1745257087912,0.063,135.0,134.97,18.64964886]
[1745257088298,20.063,135.0,134.93,7.41125027]
[1745257088497,20.063,135.0,134.94,18.64964886]
[1745257088894,46.063,135.0,134.93,18.64964886]
[1745257089100,2.96318245,134.99,134.94,7.41070105]
[1745257089619,2.96318245,134.99,134.93,26.0606386]
[1745257089819,2.96318245,134.99,134.93,18.64964886]
[1745257090724,2.96318245,134.99,134.93,26.06083459]
[1745257091910,2.96318245,134.99,134.93,18.64964886]
[1745257092117,20.0,134.98,134.93,18.64964886]
[1745257092422,20.0,134.96,134.91,0.03]
[1745257093606,20.0,134.96,134.92,18.64964886]
[1745257094120,26.20516157,135.0,134.93,18.79181043]
[1745257094121,2.96349303,134.98,134.93,18.79181043]
[1745257095307,46.063,135.0,134.95,18.64964886]
[1745257095308,2.96318245,134.99,134.95,18.64964886]
[1745257097244,2.96318245,134.99,134.91,33.44222639]
[1745257097245,20.0,134.98,134.91,33.44222639]
[1745257097521,20.0,134.96,134.91,0.03]
[1745257099027,2.96406076,134.95,134.91,0.03]
[1745257099941,20.0,134.98,134.91,0.03]
[1745257100815,2.96368919,134.97,134.91,0.03]
[1745257101120,2.96368919,134.97,134.92,18.64964886]
[1745257103331,20.0,134.98,134.92,7.41131531]
[1745257103629,23.02606655,135.0,134.93,18.79181043]
[1745257104002,3.02606655,135.0,134.93,18.79181043]
[1745257104206,0.063,135.0,134.93,18.79181043]
[1745257105639,4.50744444,135.0,134.94,7.41070105]
[1745257107744,0.063,135.0,134.95,7.40977608]
[1745257107907,0.063,135.0,134.96,0.14216157]
[1745257108248,0.063,135.0,134.96,18.79181043]
[1745257109251,0.063,135.0,134.99,44.79181043]
[1745257110341,0.063,135.0,134.99,26.19976657]
[1745257110541,0.063,135.0,134.99,52.19976657]
[1745257111139,0.063,135.0,134.99,133.99976656]
[1745257111437,0.063,135.01,134.99,114.21486656]
[1745257111640,0.063,135.03,135.02,44.79181043]
[1745257111845,0.063,135.03,135.02,126.59181042]
[1745257112322,0.063,135.03,135.02,132.63497773]
[1745257112522,0.063,135.04,135.03,18.79181043]
[1745257112828,0.063,135.04,135.03,37.15181043]
[1745257113228,1e-08,135.04,135.03,37.15181043]
[1745257113438,1e-08,135.04,135.03,118.95181042]
[1745257113760,1e-08,135.05,135.03,118.95181042]
[1745257113923,1e-08,135.05,135.04,25.00691043]
[1745257114647,1e-08,135.05,135.04,32.4121237]
[1745257114854,1e-08,135.05,135.04,114.21212369]
[1745257115843,0.063,135.09,135.08,18.79181043]
[1745257116242,0.063,135.09,135.08,102.24441042]
[1745257116418,0.063,135.09,135.08,109.64743085]
[1745257116941,0.063,135.09,135.08,107.99483085]
[1745257118443,0.063,135.09,135.08,100.59181042]
[1745257118642,0.063,135.09,135.05,18.64964886]
[1745257118947,0.063,135.09,135.05,7.40466493]
[1745257119144,0.063,135.09,135.06,18.64964886]
[1745257119620,0.063,135.09,135.07,0.14216157]
[1745257120049,0.063,135.09,135.08,18.64964886]
[1745257121137,0.063,135.09,135.06,7.54624977]
[1745257121356,0.063,135.09,135.07,18.64964886]
[1745257121559,0.063,135.09,135.05,7.40447327]
[1745257121765,0.063,135.09,135.06,18.64964886]
[1745257122654,0.063,135.09,135.06,7.40383107]
[1745257123730,0.063,135.09,135.05,26.0541197]
[1745257123931,0.063,135.09,135.05,18.64964886]
[1745257124156,0.063,135.09,135.03,51.7656027]
[1745257124366,20.0,135.08,135.03,18.36]
[1745257124530,0.063,135.09,135.02,26.0554789]
[1745257124738,0.063,135.09,135.03,0.14216157]
[1745257125662,0.063,135.09,135.05,18.79181043]
[1745257126246,0.063,135.09,135.04,7.40521327]
[1745257126453,0.063,135.09,135.04,18.64964886]
[1745257128137,0.063,135.09,135.05,7.40466493]
[1745257129672,0.063,135.09,135.02,81.79999999]
[1745257129859,0.063,135.09,135.03,18.64964886]
[1745257130176,5.98497794,135.09,135.03,18.64964886]
[1745257130975,20.0,135.08,135.02,18.64964886]
[1745257132086,20.0,135.08,135.01,18.64964886]
[1745257132277,5.92285481,135.07,135.01,26.05650489]
[1745257132643,20.0,135.06,134.99,100.11999999]
[1745257132873,20.0,135.06,135.0,18.64964886]
[1745257133177,20.0,135.06,134.99,25.72786659]
[1745257133877,20.0,135.06,134.99,18.32]
[1745257134061,28.1905,135.06,134.99,25.72782694]
[1745257134871,5.92373195,135.05,135.0,18.64964886]
[1745257135175,28.1905,135.06,135.0,18.64964886]
[1745257135176,8.1905,135.06,135.0,18.64964886]
[1745257136374,14.11389524,135.06,135.0,26.0566419]
[1745257137189,14.11389524,135.06,135.0,18.64964886]
[1745257137384,48.92212861,135.06,134.99,18.32]
[1745257137758,48.92212861,135.06,134.98,26.05774623]
[1745257140452,20.0,135.03,134.97,18.71264886]
[1745257140874,20.0,135.05,134.98,0.14216157]
[1745257141954,5.92417061,135.04,134.99,7.40795614]
[1745257143669,5.92417061,135.04,134.97,18.71264886]
[1745257143868,20.0,135.02,134.97,0.063]
[1745257145685,5.92636491,134.99,134.97,0.063]
[1745257147970,5.92597759,135.0,134.97,0.063]
[1745257148271,26.0,135.01,134.97,0.063]
[1745257149167,31.92563285,135.01,134.97,0.063]
[1745257150693,20.0,135.0,134.97,0.063]
[1745257151070,5.92636491,134.99,134.97,0.063]
[1745257153489,20.0,134.98,134.97,0.063]
[1745257153666,47.5056,134.98,134.97,0.063]
[1745257154970,53.43240397,134.98,134.97,0.063]
[1745257155396,20.0,134.96,134.95,0.063]
[1745257155698,46.0,134.96,134.95,0.063]
[1745257157000,51.92768227,134.96,134.95,0.063]
[1745257159690,51.92768227,134.96,134.92,0.063]
[1745257159691,26.0,134.93,134.92,0.063]
[1745257160395,20.0,134.94,134.92,0.063]
[1745257161767,5.92900022,134.93,134.92,0.063]
[1745257162797,31.92900022,134.93,134.92,0.063]
[1745257165194,46.0,134.92,134.9,0.03]
[1745257165402,47.5295,134.92,134.9,0.03]
[1745257165910,46.0,134.9,134.89,0.063]
[1745257166613,51.93031875,134.9,134.89,0.063]
[1745257169315,46.0,134.88,134.87,0.03]
[1745257170492,46.14216157,134.88,134.87,1e-08]
[1745257171099,133.87335967,134.88,134.87,1e-08]
[1745257171708,0.14216157,134.87,134.86,1e-08]
[1745257171895,20.14216157,134.86,134.85,1e-08]
[1745257172402,46.0,134.84,134.83,0.03]
[1745257173009,51.93295757,134.84,134.83,0.03]
[1745257176822,25.93295757,134.84,134.83,0.03]
[1745257177816,32.67427868,134.85,134.83,0.03]
[1745257178120,98.4818288,134.88,134.83,0.03]
[1745257178121,20.0,134.88,134.83,0.03]
[1745257179024,6.67332168,134.87,134.83,7.44674701]
[1745257179219,6.67332168,134.87,134.83,0.03]
[1745257180104,20.0,134.86,134.83,0.03]
[1745257181026,6.67408231,134.85,134.83,0.03]
[1745257187319,46.0,134.84,134.83,0.03]
[1745257189315,53.41619697,134.84,134.83,0.03]
[1745257192531,27.41619697,134.84,134.83,0.03]
[1745257192939,7.41584404,134.85,134.83,0.03]
[1745257195420,120.39420617,134.91,134.85,1.537]